fUST/lending_fUST_20240521
["ID","MTS","AMOUNT","RATE_DAILY","PERIOD"]
[327576282,1716240652069,-500.0,0.00043835,40]
[327576283,1716240652078,-448.10317807,0.00043835,40]
[327576284,1716240652087,-1000.0,0.00043835,40]
[327576285,1716240652096,-636.49,0.00043835,40]
[327576286,1716240652106,-500.0,0.00043835,40]
[327576287,1716240652115,-523.47,0.00043835,40]
[327576288,1716240652124,-500.0,0.00043835,40]
[327576289,1716240652135,-500.0,0.00043835,7]
[327576290,1716240652144,-646.34,0.00043835,40]
[327576291,1716240652153,-518.61433453,0.00043835,40]
[327576292,1716240652164,-500.0,0.00043835,40]
[327576293,1716240652173,-665.5,0.00043835,40]
[327576294,1716240652183,-151.0,0.00043835,40]
[327576295,1716240652193,-500.0,0.00043835,40]
[327576296,1716240652203,-500.0,0.00043835,40]
[327576297,1716240652212,-1419.89,0.00043835,40]
[327576298,1716240652223,-500.0,0.00043835,40]
[327576299,1716240652232,-500.0,0.00043835,40]
[327576300,1716240652242,-500.0,0.00043835,30]
[327576301,1716240652251,-500.0,0.00043835,40]
[327576302,1716240652260,-963.59,0.00043835,40]
[327576303,1716240652274,-500.0,0.00043835,40]
[327576304,1716240652283,-500.0,0.00043835,40]
[327576305,1716240652292,-500.0,0.00043835,40]
[327576306,1716240652302,-500.0,0.00043835,40]
[327576307,1716240652311,-500.0,0.00043835,40]
[327576308,1716240652320,-500.0,0.00043835,40]
[327576309,1716240652329,-1142.17,0.00043835,40]
[327576310,1716240652340,-1000.0,0.00043835,40]
[327576311,1716240652349,-889.89,0.00043835,40]
[327576312,1716240652359,-500.0,0.00043835,40]
[327576313,1716240652369,-1140.28,0.00043835,40]
[327576314,1716240652378,-500.0,0.00043835,40]
[327576315,1716240652387,-500.0,0.00043835,40]
[327576316,1716240652396,-500.0,0.00043835,40]
[327576317,1716240652406,-500.0,0.00043835,40]
[327576318,1716240652415,-500.0,0.00043835,40]
[327576319,1716240652424,-500.0,0.00043835,40]
[327576320,1716240652434,-500.0,0.00043835,40]
[327576321,1716240652443,-500.0,0.00043835,40]
[327576322,1716240652452,-500.0,0.00043835,40]
[327576323,1716240652461,-1116.75,0.00043835,40]
[327576324,1716240652472,-835.02,0.00043835,40]
[327576325,1716240652482,-500.0,0.00043835,40]
[327576326,1716240652490,-500.0,0.00043835,40]
[327576327,1716240652499,-1572.39,0.00043835,40]
[327576328,1716240652508,-576.07,0.00043835,40]
[327576329,1716240652518,-500.0,0.00043835,40]
[327576330,1716240652527,-500.0,0.00043835,40]
[327576331,1716240652536,-500.0,0.00043835,40]
[327576332,1716240652546,-500.0,0.00043835,40]
[327576333,1716240652555,-688.19,0.00043835,40]
[327576334,1716240652563,-500.0,0.00043835,40]
[327576335,1716240652572,-500.0,0.00043835,40]
[327576336,1716240652582,-1386.51,0.00043835,40]
[327576337,1716240652590,-801.39,0.00043835,40]
[327576338,1716240652599,-549.75,0.00043835,40]
[327576339,1716240652610,-500.0,0.00043835,40]
[327576340,1716240652621,-920.41,0.00043835,40]
[327576341,1716240652631,-500.0,0.00043835,40]
[327576342,1716240652640,-500.0,0.00043835,40]
[327576343,1716240652649,-280.24769095,0.00043835,40]
[327576344,1716240652659,-500.0,0.00043835,40]
[327576345,1716240652668,-500.0,0.00043835,40]
[327576346,1716240652677,-500.18518838,0.00043835,40]
[327576347,1716240652688,-506.15,0.00043835,40]
[327576348,1716240652698,-500.0,0.00043835,40]
[327576349,1716240652708,-500.0,0.00043835,40]
[327576350,1716240652717,-500.0,0.00043835,40]
[327576351,1716240652727,-500.0,0.00043835,40]
[327576352,1716240652737,-563.67,0.00043835,40]
[327576353,1716240652746,-1461.91,0.00043835,40]
[327576354,1716240652755,-500.0,0.00043835,40]
[327576355,1716240652764,-229.81758764,0.00043835,40]
[327576356,1716240652773,-1034.96,0.00043835,40]
[327576357,1716240652782,-500.0,0.00043835,14]
[327576358,1716240652791,-557.23,0.00043835,40]
[327576359,1716240652801,-500.0,0.00043835,40]
[327576360,1716240652811,-500.0,0.00043835,41]
[327576361,1716240652820,-500.0,0.00043835,42]
[327576362,1716240652829,-500.0,0.00043835,40]
[327576363,1716240652838,-500.0,0.00043835,40]
[327576364,1716240652848,-500.0,0.00043835,41]
[327576365,1716240652857,-500.0,0.00043835,42]
[327576366,1716240652868,-500.0,0.00043835,43]
[327576367,1716240652878,-500.0,0.00043835,40]
[327576368,1716240652887,-195.0,0.00043835,44]
[327576369,1716240652897,-500.0,0.00043835,40]
[327576370,1716240652906,-500.0,0.00043835,40]
[327576371,1716240652915,-500.0,0.00043835,40]
[327576372,1716240652926,-534.07773022,0.00043835,40]
[327576373,1716240652935,-500.0,0.00043835,40]
[327576374,1716240652945,-865.01,0.00043835,40]
[327576375,1716240652954,-500.0,0.00043835,40]
[327576376,1716240652964,-401.74726861,0.00043835,40]
[327576377,1716240652975,-500.0,0.00043835,40]
[327576378,1716240652984,-500.0,0.00043835,40]
[327576379,1716240652993,-500.0,0.00043835,40]
[327576380,1716240653002,-500.0,0.00043835,40]
[327576381,1716240653012,-500.0,0.00043835,40]
[327576382,1716240653022,-500.0,0.00043835,40]
[327576383,1716240653032,-500.0,0.00043835,40]
[327576384,1716240653042,-500.0,0.00043835,40]
[327576385,1716240653051,-772.62,0.00043835,40]
[327576386,1716240653062,-500.0,0.00043835,40]
[327576387,1716240653072,-505.32,0.00043835,40]
[327576388,1716240653082,-500.0,0.00043835,40]
[327576389,1716240653093,-500.0,0.00043835,40]
[327576390,1716240653103,-500.0,0.00043835,40]
[327576391,1716240653112,-500.0,0.00043835,40]
[327576392,1716240653122,-500.0,0.00043835,40]
[327576393,1716240653131,-618.3,0.00043835,40]
[327576394,1716240653140,-943.29,0.00043835,40]
[327576395,1716240653149,-500.0,0.00043835,40]
[327576396,1716240653159,-500.0,0.00043835,40]
[327576397,1716240653168,-500.0,0.00043835,40]
[327576398,1716240653177,-1002.8,0.00043835,40]
[327576399,1716240653186,-500.0,0.00043835,40]
[327576400,1716240653196,-293.16763086,0.00043835,40]
[327576401,1716240653205,-605.58898397,0.00043835,40]
[327576402,1716240653214,-500.0,0.00043835,40]
[327576403,1716240653225,-551.78,0.00043835,40]
[327576404,1716240653235,-500.0,0.00043835,40]
[327576405,1716240653244,-710.52,0.00043835,40]
[327576406,1716240653254,-500.0,0.00043835,40]
[327576407,1716240653269,-500.0,0.00043835,40]
[327576408,1716240653279,-501.66056055,0.00043835,40]
[327576409,1716240653289,-500.0,0.00043835,40]
[327576410,1716240653300,-500.0,0.00043835,40]
[327576411,1716240653310,-500.0,0.00043835,40]
[327576412,1716240653319,-500.0,0.00043835,40]
[327576413,1716240653329,-151.0,0.00043835,7]
[327576414,1716240653338,-500.0,0.00043835,40]
[327576415,1716240653351,-151.0,0.00043835,7]
[327576416,1716240653362,-500.0,0.00043835,40]
[327576417,1716240653372,-500.0,0.00043835,40]
[327576418,1716240653381,-712.28,0.00043835,40]
[327576419,1716240653391,-500.0,0.00043835,40]
[327576420,1716240653400,-507.264423,0.00043835,40]
[327576421,1716240653411,-500.0,0.00043835,40]
[327576422,1716240653420,-500.0,0.00043835,40]
[327576423,1716240653429,-500.0,0.00043835,40]
[327576424,1716240653439,-526.93,0.00043835,40]
[327576425,1716240653448,-505.24294038,0.00043835,40]
[327576426,1716240653458,-500.0,0.00043835,40]
[327576427,1716240653469,-500.0,0.00043835,40]
[327576428,1716240653478,-791.56,0.00043835,40]
[327576429,1716240653487,-2512.77,0.00043835,40]
[327576430,1716240653496,-517.26,0.00043835,40]
[327576431,1716240653505,-500.0,0.00043835,40]
[327576432,1716240653514,-500.0,0.00043835,40]
[327576433,1716240653523,-713.03,0.00043835,40]
[327576434,1716240653532,-500.0,0.00043835,40]
[327576435,1716240653541,-500.0,0.00043835,40]
[327576436,1716240653550,-626.58,0.00043835,40]
[327576437,1716240653560,-500.0,0.00043835,40]
[327576438,1716240653569,-500.0,0.00043835,40]
[327576439,1716240653579,-500.0,0.00043835,40]
[327576440,1716240653588,-500.0,0.00043835,40]
[327576441,1716240653598,-725.64,0.00043835,40]
[327576442,1716240653608,-500.0,0.00043835,40]
[327576443,1716240653617,-461.11521857,0.00043835,20]
[327576444,1716240653626,-1122.74,0.00043835,40]
[327576445,1716240653635,-379.44760203,0.00043835,40]
[327576446,1716240653645,-500.0,0.00043835,40]
[327576447,1716240653655,-500.0,0.00043835,41]
[327576448,1716240653666,-1640.09,0.00043835,40]
[327576449,1716240653677,-500.0,0.00043835,40]
[327576450,1716240653687,-500.0,0.00043835,42]
[327576451,1716240653696,-500.0,0.00043835,40]
[327576452,1716240653706,-500.0,0.00043835,43]
[327576453,1716240653715,-500.0,0.00043835,40]
[327576454,1716240653726,-500.0,0.00043835,40]
[327576455,1716240653735,-956.06,0.00043835,40]
[327576456,1716240653745,-500.0,0.00043835,40]
[327576457,1716240653754,-512.02879598,0.00043835,40]
[327576458,1716240653763,-500.0,0.00043835,40]
[327576459,1716240653871,-501.58782745,0.00043835,40]
[327576460,1716240653881,-500.0,0.00043835,40]
[327576461,1716240653891,-500.0,0.00043835,40]
[327576462,1716240653900,-1011.91,0.00043835,40]
[327576463,1716240653909,-609.34,0.00043835,40]
[327576464,1716240653918,-500.0,0.00043835,40]
[327576465,1716240653927,-513.13912251,0.00043835,40]
[327576466,1716240653936,-500.0,0.00043835,40]
[327576467,1716240653946,-833.35,0.00043835,40]
[327576468,1716240653955,-500.0,0.00043835,40]
[327576469,1716240653964,-500.0,0.00043835,40]
[327576470,1716240653975,-2988.48,0.00043835,40]
[327576471,1716240653984,-849.37,0.00043835,40]
[327576472,1716240653993,-4869.7,0.00043835,40]
[327576473,1716240654002,-500.0,0.00043835,40]
[327576474,1716240654011,-1558.14,0.00043835,40]
[327576475,1716240654021,-500.0,0.00043835,40]
[327576476,1716240654030,-1571.02,0.00043835,40]
[327576477,1716240654040,-543.68326571,0.00043835,40]
[327576478,1716240654049,-500.0,0.00043835,40]
[327576479,1716240654058,-500.0,0.00043835,40]
[327576480,1716240654068,-601.93,0.00043835,40]
[327576481,1716240654077,-500.0,0.00043835,40]
[327576482,1716240654086,-3429.26,0.00043835,40]
[327576483,1716240654095,-500.0,0.00043835,40]
[327576484,1716240654105,-500.0,0.00043835,40]
[327576485,1716240654114,-500.0,0.00043835,40]
[327576486,1716240654123,-500.0,0.00043835,40]
[327576487,1716240654132,-3083.38,0.00043835,40]
[327576488,1716240654142,-500.0,0.00043835,40]
[327576489,1716240654150,-500.0,0.00043835,40]
[327576490,1716240654159,-451.366454,0.00043835,40]
[327576491,1716240654168,-500.0,0.00043835,40]
[327576492,1716240654178,-728.68,0.00043835,40]
[327576493,1716240654187,-728.68,0.00043835,41]
[327576494,1716240654196,-728.68,0.00043835,42]
[327576495,1716240654205,-728.68,0.00043835,43]
[327576496,1716240654214,-500.0,0.00043835,40]
[327576497,1716240654225,-534.47,0.00043835,120]
[327576498,1716240654234,-728.68,0.00043835,44]
[327576499,1716240654243,-728.68,0.00043835,45]
[327576500,1716240654252,-728.68,0.00043835,46]
[327576501,1716240654263,-728.68,0.00043835,47]
[327576502,1716240654276,-728.68,0.00043835,48]
[327576503,1716240654285,-728.68,0.00043835,49]
[327576504,1716240654294,-500.0,0.00043835,40]
[327576505,1716240654303,-718.21,0.00043835,40]
[327576506,1716240654311,-2015.88,0.00043835,40]
[327576507,1716240654321,-728.68,0.00043835,50]
[327576508,1716240654329,-513.89172676,0.00043835,40]
[327576509,1716240654339,-728.68,0.00043835,51]
[327576510,1716240654350,-899.6,0.00043835,40]
[327576511,1716240654360,-728.68,0.00043835,52]
[327576512,1716240654369,-728.68,0.00043835,53]
[327576513,1716240654379,-728.68,0.00043835,54]
[327576514,1716240654388,-728.68,0.00043835,55]
[327576515,1716240654397,-513.40601066,0.00043835,40]
[327576516,1716240654407,-728.68,0.00043835,56]
[327576517,1716240654416,-501.05395287,0.00043835,40]
[327576518,1716240654425,-728.68,0.00043835,57]
[327576519,1716240654435,-500.0,0.00043835,40]
[327576520,1716240654444,-728.68,0.00043835,58]
[327576521,1716240654453,-728.68,0.00043835,59]
[327576522,1716240654463,-728.68,0.00043835,59]
[327576523,1716240654473,-728.68,0.00043835,59]
[327576524,1716240654483,-728.68,0.00043835,59]
[327576525,1716240654492,-728.70793935,0.00043835,59]
[327576526,1716240654502,-500.0,0.00043835,40]
[327576527,1716240654511,-500.0,0.00043835,40]
[327576528,1716240654520,-999.34,0.00043835,40]
[327576529,1716240654530,-500.0,0.00043835,40]
[327576530,1716240654539,-1006.46,0.00043835,40]
[327576531,1716240654549,-500.0,0.00043835,40]
[327576532,1716240654558,-500.0,0.00043835,40]
[327576533,1716240654567,-500.0,0.00043835,40]
[327576534,1716240654576,-1070.3,0.00043835,40]
[327576535,1716240654585,-500.0,0.00043835,40]
[327576536,1716240654595,-5053.09,0.00043835,40]
[327576537,1716240654604,-503.18797659,0.00043835,40]
[327576538,1716240654614,-500.0,0.00043835,40]
[327576539,1716240654623,-999.69,0.00043835,40]
[327576540,1716240654632,-500.0,0.00043835,40]
[327576541,1716240654642,-6152.09,0.00043835,40]
[327576542,1716240654651,-730.92,0.00043835,40]
[327576543,1716240654660,-500.0,0.00043835,40]
[327576544,1716240654669,-500.0,0.00043835,40]
[327576545,1716240654680,-500.0,0.00043835,40]
[327576546,1716240654689,-500.0,0.00043835,40]
[327576547,1716240654701,-500.0,0.00043835,40]
[327576548,1716240654711,-500.0,0.00043835,40]
[327576549,1716240654722,-500.0,0.00043835,40]
[327576550,1716240654731,-280.90140297,0.00043835,40]
[327576551,1716240654741,-500.0,0.00043835,40]
[327576552,1716240654750,-500.0,0.00043835,40]
[327576553,1716240654760,-500.0,0.00043835,40]
[327576554,1716240654769,-1001.74,0.00043835,40]
[327576555,1716240654778,-500.0,0.00043835,40]
[327576556,1716240654788,-337.43540898,0.00043835,40]
[327576557,1716240654797,-513.53,0.00043835,40]
[327576558,1716240654806,-500.0,0.00043835,40]
[327576559,1716240654815,-347.91594249,0.00043835,40]
[327576560,1716240654825,-500.0,0.00043835,40]
[327576561,1716240654835,-500.0,0.00043835,40]
[327576562,1716240654844,-500.0,0.00043835,40]
[327576563,1716240654854,-500.0,0.00043835,40]
[327576564,1716240654863,-500.0,0.00043835,40]
[327576565,1716240654873,-500.0,0.00043835,40]
[327576566,1716240654883,-500.0,0.00043835,40]
[327576567,1716240654892,-666.63,0.00043835,40]
[327576568,1716240654901,-734.2,0.00043835,40]
[327576569,1716240654911,-459.34027412,0.00043835,40]
[327576570,1716240654920,-661.66,0.00043835,40]
[327576571,1716240654930,-500.0,0.00043835,40]
[327576572,1716240654939,-500.0,0.00043835,40]
[327576573,1716240654948,-500.0,0.00043835,41]
[327576574,1716240654958,-500.0,0.00043835,42]
[327576575,1716240654969,-500.0,0.00043835,43]
[327576576,1716240654979,-500.0,0.00043835,44]
[327576577,1716240654988,-208.40912691,0.00043835,45]
[327576578,1716240654998,-500.0,0.00043835,2]
[327576579,1716240655007,-614.61,0.00043835,40]
[327576580,1716240655016,-500.846189,0.00043835,40]
[327576581,1716240655025,-500.0,0.00043835,40]
[327576582,1716240655034,-7926.58,0.00043835,40]
[327576583,1716240655043,-1224.22,0.00043835,40]
[327576584,1716240655053,-500.0,0.00043835,40]
[327576585,1716240655062,-6587.98,0.00043835,40]
[327576586,1716240655071,-500.0,0.00043835,40]
[327576587,1716240655081,-500.0,0.00043835,40]
[327576588,1716240655090,-492.0390222,0.00043835,40]
[327576589,1716240655099,-500.0,0.00043835,40]
[327576590,1716240655109,-845.16,0.00043835,40]
[327576591,1716240655118,-505.82178899,0.00043835,40]
[327576592,1716240655127,-500.0,0.00043835,40]
[327576593,1716240655136,-500.0,0.00043835,40]
[327576594,1716240655146,-500.0,0.00043835,40]
[327576595,1716240655155,-1278.34,0.00043835,40]
[327576596,1716240655164,-500.0,0.00043835,40]
[327576597,1716240655173,-500.0,0.00043835,40]
[327576598,1716240655183,-811.1,0.00043835,40]
[327576599,1716240655192,-520.57,0.00043835,40]
[327576600,1716240655203,-1527.29,0.00043835,40]
[327576601,1716240655212,-928.24,0.00043835,40]
[327576602,1716240655223,-500.0,0.00043835,40]
[327576603,1716240655232,-500.0,0.00043835,40]
[327576604,1716240655241,-500.0,0.00043835,40]
[327576605,1716240655250,-6561.19,0.00043835,21]
[327576606,1716240655259,-720.03,0.00043835,40]
[327576607,1716240655271,-1676.49,0.00043835,40]
[327576608,1716240655280,-875.64,0.00043835,40]
[327576609,1716240655290,-500.0,0.00043835,40]
[327576610,1716240655299,-703.74,0.00043835,40]
[327576611,1716240655309,-151.0,0.00043835,7]
[327576612,1716240655319,-151.0,0.00043835,7]
[327576613,1716240655328,-500.0,0.00043835,40]
[327576614,1716240655337,-151.0,0.00043835,7]
[327576615,1716240655348,-506.53725978,0.00043835,40]
[327576616,1716240655356,-842.75,0.00043835,40]
[327576617,1716240655366,-1255.87,0.00043835,40]
[327576618,1716240655375,-598.9,0.00043835,40]
[327576619,1716240655384,-500.0,0.00043835,40]
[327576620,1716240655393,-500.0,0.00043835,40]
[327576621,1716240655402,-523.79088673,0.00043835,40]
[327576622,1716240655411,-1155.03,0.00043835,7]
[327576623,1716240655421,-507.40665128,0.00043835,40]
[327576624,1716240655430,-1245.12,0.00043835,2]
[327576625,1716240655439,-2751.58,0.00043835,40]
[327576626,1716240655448,-533.40713,0.00043835,7]
[327576627,1716240655457,-500.0,0.00043835,40]
[327576628,1716240655467,-533.40713,0.00043835,7]
[327576629,1716240655477,-533.40713,0.00043835,7]
[327576630,1716240655486,-500.0,0.00043835,40]
[327576631,1716240655495,-533.40713,0.00043835,7]
[327576632,1716240655505,-500.0,0.00043835,40]
[327576633,1716240655515,-533.40713,0.00043835,7]
[327576634,1716240655524,-533.40713,0.00043835,7]
[327576635,1716240655534,-500.0,0.00043835,40]
[327576636,1716240655544,-4714.06,0.00043835,40]
[327576637,1716240655553,-500.0,0.00043835,40]
[327576638,1716240655563,-681.59,0.00043835,40]
[327576639,1716240655572,-500.0,0.00043835,40]
[327576640,1716240655582,-1361.44,0.00043835,40]
[327576641,1716240655591,-500.0,0.00043835,40]
[327576642,1716240655600,-6933.74,0.00043835,40]
[327576643,1716240655610,-500.0,0.00043835,40]
[327576644,1716240655619,-6933.74,0.00043835,41]
[327576645,1716240655628,-6933.74,0.00043835,42]
[327576646,1716240655637,-6933.74,0.00043835,43]
[327576647,1716240655647,-539.15,0.00043835,40]
[327576648,1716240655656,-6933.74,0.00043835,44]
[327576649,1716240655665,-6933.74,0.00043835,45]
[327576650,1716240655675,-935.38,0.00043835,40]
[327576651,1716240655684,-6933.74,0.00043835,46]
[327576652,1716240655693,-6933.74,0.00043835,47]
[327576653,1716240655703,-6933.74,0.00043835,48]
[327576654,1716240655712,-500.0,0.00043835,40]
[327576655,1716240655723,-6933.74,0.00043835,49]
[327576656,1716240655733,-6933.74,0.00043835,50]
[327576657,1716240655743,-6933.74,0.00043835,51]
[327576658,1716240655752,-6933.74,0.00043835,52]
[327576659,1716240655860,-6933.74,0.00043835,53]
[327576660,1716240655869,-2056.06,0.00043835,40]
[327576661,1716240655878,-6933.74,0.00043835,54]
[327576662,1716240655887,-6933.74,0.00043835,55]
[327576663,1716240655896,-6933.74,0.00043835,56]
[327576664,1716240655906,-6933.74,0.00043835,57]
[327576665,1716240655915,-6933.74,0.00043835,58]
[327576666,1716240655925,-6933.74,0.00043835,59]
[327576667,1716240655934,-531.38,0.00043835,40]
[327576668,1716240655944,-500.0,0.00043835,40]
[327576669,1716240655956,-501.77381646,0.00043835,40]
[327576670,1716240655965,-6933.74,0.00043835,59]
[327576671,1716240655977,-6933.74,0.00043835,59]
[327576672,1716240655986,-500.0,0.00043835,40]
[327576673,1716240655995,-500.0,0.00043835,40]
[327576674,1716240656004,-6933.74,0.00043835,59]
[327576675,1716240656014,-6933.84759375,0.00043835,59]
[327576676,1716240656023,-500.0,0.00043835,40]
[327576677,1716240656032,-500.0,0.00043835,2]
[327576678,1716240656041,-500.0,0.00043835,40]
[327576679,1716240656050,-500.0,0.00043835,40]
[327576680,1716240656061,-1485.31,0.00043835,40]
[327576681,1716240656071,-500.0,0.00043835,40]
[327576682,1716240656080,-500.0,0.00043835,40]
[327576683,1716240656090,-500.0,0.00043835,40]
[327576684,1716240656099,-546.55,0.00043835,40]
[327576685,1716240656108,-500.0,0.00043835,40]
[327576686,1716240656119,-1371.72,0.00043835,40]
[327576687,1716240656128,-500.0,0.00043835,40]
[327576688,1716240656138,-1789.43,0.00043835,40]
[327576689,1716240656150,-501.70439107,0.00043835,40]
[327576690,1716240656161,-27847.71,0.00043835,40]
[327576691,1716240656171,-151.0,0.00043835,7]
[327576692,1716240656180,-751.03,0.00043835,40]
[327576693,1716240656189,-151.0,0.00043835,7]
[327576694,1716240656199,-3900.83,0.00043835,30]
[327576695,1716240656208,-151.0,0.00043835,7]
[327576696,1716240656219,-885.61,0.00043835,40]
[327576697,1716240656228,-503.80342427,0.00043835,40]
[327576698,1716240656237,-500.0,0.00043835,40]
[327576699,1716240656247,-500.0,0.00043835,40]
[327576700,1716240656256,-500.0,0.00043835,40]
[327576701,1716240656271,-186.736001,0.00043835,7]
[327576702,1716240656281,-186.736001,0.00043835,7]
[327576703,1716240656290,-186.736001,0.00043835,7]
[327576704,1716240656299,-556.86,0.00043835,40]
[327576705,1716240656310,-186.736001,0.00043835,7]
[327576706,1716240656319,-1046.32,0.00043835,40]
[327576707,1716240656330,-186.736001,0.00043835,7]
[327576708,1716240656340,-186.736001,0.00043835,7]
[327576709,1716240656350,-583.57143398,0.00043835,40]
[327576710,1716240656360,-500.0,0.00043835,40]
[327576711,1716240656369,-500.0,0.00043835,40]
[327576712,1716240656379,-707.51,0.00043835,40]
[327576713,1716240656388,-584.61,0.00043835,40]
[327576714,1716240656397,-500.0,0.00043835,2]
[327576715,1716240656406,-500.0,0.00043835,40]
[327576716,1716240656415,-506.94159757,0.00043835,40]
[327576717,1716240656424,-502.66221055,0.00043835,40]
[327576718,1716240656433,-501.638279,0.00043835,40]
[327576719,1716240656443,-1089.74,0.00043835,40]
[327576720,1716240656452,-503.32845027,0.00043835,40]
[327576721,1716240656462,-504.55555756,0.00043835,40]
[327576722,1716240656473,-440.63488133,0.00043836,30]
[327576723,1716240656482,-212.12770649,0.00043907,30]
[327576724,1716240656491,-212.12770649,0.0004392,30]
[327576725,1716240656500,-440.63488133,0.00043927,30]
[327576726,1716240656511,-151.40188392,0.0004393,30]
[327576727,1716240656520,-160.0,0.00043932,5]
[327576728,1716240656530,-212.12770649,0.00043933,30]
[327576729,1716240656539,-212.12770649,0.00043934,30]
[327576730,1716240656548,-151.40188392,0.0004394,30]
[327576731,1716240656558,-440.63488133,0.00043951,30]
[327576732,1716240656567,-152.7044776,0.00043957,30]
[327576733,1716240656576,-150.5,0.0004397,35]
[327576734,1716240656586,-151.40188392,0.00043975,30]
[327576735,1716240656594,-150.5,0.0004398,35]
[327576736,1716240656603,-1574.34066916,0.00043981,15]
[327576737,1716240656612,-245.04,0.0004399,35]
[327576738,1716240656620,-150.5,0.0004399,35]
[327576739,1716240656629,-212.12770649,0.00043992,30]
[327576740,1716240656638,-440.63488133,0.00043993,30]
[327576741,1716240656647,-154.92296699,0.00043999,30]
[327576742,1716240656656,-42904.77285717,0.00044,2]
[327576743,1716240656665,-7000.0,0.00044,3]
[327576744,1716240656674,-200.0,0.0004401,120]
[327576745,1716240656683,-212.12770649,0.00044034,30]
[327576746,1716240656692,-173.51976092,0.00044049,30]
[327576747,1716240656703,-173.51976092,0.00044057,30]
[327576748,1716240656712,-151.40188392,0.00044069,30]
[327576749,1716240656722,-440.63488133,0.0004407,30]
[327576750,1716240656732,-563.0,0.000441,20]
[327576751,1716240656741,-563.0,0.000441,20]
[327576752,1716240656750,-563.0,0.000441,20]
[327576753,1716240656759,-500.0,0.00044109,41]
[327576754,1716240656767,-500.0,0.00044109,41]
[327576755,1716240656776,-500.0,0.00044109,41]
[327576756,1716240656785,-500.0,0.00044109,41]
[327576757,1716240656794,-500.0,0.00044109,41]
[327576758,1716240656802,-500.0,0.00044109,41]
[327576759,1716240656811,-490.56827723,0.00044109,41]
[327576760,1716240656819,-500.0,0.00044109,41]
[327576761,1716240656828,-500.0,0.00044109,41]
[327576762,1716240656837,-506.33998342,0.00044109,41]
[327576763,1716240656846,-500.0,0.00044109,41]
[327576764,1716240656855,-1000.72,0.00044109,41]
[327576765,1716240656864,-219.171462,0.00044109,7]
[327576766,1716240656873,-500.0,0.00044109,41]
[327576767,1716240656882,-500.0,0.00044109,41]
[327576768,1716240656891,-500.0,0.00044109,41]
[327576769,1716240656900,-500.0,0.00044109,41]
[327576770,1716240656908,-500.0,0.00044109,41]
[327576771,1716240656917,-823.23,0.00044109,41]
[327576772,1716240656926,-514.76989386,0.00044109,41]
[327576773,1716240656935,-500.0,0.00044109,41]
[327576774,1716240656944,-500.0,0.00044109,41]
[327576775,1716240656953,-500.0,0.00044109,41]
[327576776,1716240656962,-500.0,0.00044109,41]
[327576777,1716240656972,-500.0,0.00044109,41]
[327576778,1716240656981,-523.09317439,0.00044109,41]
[327576779,1716240656990,-608.18,0.00044109,41]
[327576780,1716240656999,-830.37,0.00044109,41]
[327576781,1716240657008,-226.26036124,0.00044109,41]